lending/lending_fUSD_20240710
["ID","MTS","AMOUNT","RATE_DAILY","PERIOD"]
[331604030,1720578712821,-1529.72,0.00013993,2]
[331604031,1720578712831,-500.0,0.00013993,2]
[331604032,1720578712841,-855.14,0.00013993,2]
[331604033,1720578712851,-500.0,0.00013993,2]
[331604034,1720578712861,-3718.91,0.00013993,2]
[331604035,1720578712871,-740.92,0.00013993,2]
[331604036,1720578712880,-500.0,0.00013993,2]
[331604037,1720578712889,-500.0,0.00013993,2]
[331604038,1720578712899,-500.0,0.00013993,2]
[331604039,1720578712908,-500.0,0.00013993,2]
[331604040,1720578712918,-3238.09,0.00013993,2]
[331604041,1720578712927,-609.73,0.00013993,2]
[331604042,1720578712937,-1002.12,0.00013993,2]
[331604043,1720578712947,-500.0,0.00013993,2]
[331604044,1720578712958,-500.0,0.00013993,2]
[331604045,1720578712968,-651.55,0.00013993,2]
[331604046,1720578712977,-500.0,0.00013993,2]
[331604047,1720578712988,-980.41,0.00013993,2]
[331604048,1720578712997,-3990.01,0.00013993,2]
[331604049,1720578713007,-500.0,0.00013993,2]
[331604050,1720578713016,-1839.51,0.00013993,2]
[331604051,1720578713026,-500.0,0.00013993,2]
[331604052,1720578713035,-4957.69,0.00013993,2]
[331604053,1720578713045,-1974.57,0.00013993,2]
[331604054,1720578713054,-635.26,0.00013993,2]
[331604055,1720578713064,-500.0,0.00013993,2]
[331604056,1720578713073,-1500.49,0.00013993,2]
[331604057,1720578713083,-500.0,0.00013993,2]
[331604058,1720578713092,-952.07,0.00013993,2]
[331604059,1720578713102,-500.0,0.00013993,2]
[331604060,1720578713112,-699.28,0.00013993,2]
[331604061,1720578713121,-500.0,0.00013993,2]
[331604062,1720578713132,-658.29,0.00013993,2]
[331604063,1720578713141,-500.0,0.00013993,2]
[331604064,1720578713152,-500.0,0.00013993,2]
[331604065,1720578713162,-709.87,0.00013993,2]
[331604066,1720578713171,-1755.69,0.00013993,2]
[331604067,1720578713181,-500.0,0.00013993,2]
[331604068,1720578713190,-500.0,0.00013993,2]
[331604069,1720578713200,-567.11092517,0.00013993,2]
[331604070,1720578713210,-1145.48,0.00013993,2]
[331604071,1720578713219,-944.07,0.00013993,2]
[331604072,1720578713228,-2293.08,0.00013993,2]
[331604073,1720578713238,-500.0,0.00013993,2]
[331604074,1720578713248,-500.0,0.00013993,2]
[331604075,1720578713257,-780.96,0.00013993,2]
[331604076,1720578713267,-500.0,0.00013993,2]
[331604077,1720578713277,-974.57,0.00013993,2]
[331604078,1720578713286,-879.8,0.00013993,2]
[331604079,1720578713295,-500.0,0.00013993,2]
[331604080,1720578713304,-5568.96,0.00013993,2]
[331604081,1720578713314,-5378.78,0.00013993,2]
[331604082,1720578713324,-500.0,0.00013993,2]
[331604083,1720578713333,-973.02,0.00013993,2]
[331604084,1720578713344,-500.0,0.00013993,2]
[331604085,1720578713353,-500.0,0.00013993,2]
[331604086,1720578713363,-2089.34,0.00013993,2]
[331604087,1720578713373,-1639.39,0.00013993,2]
[331604088,1720578713382,-500.0,0.00013993,2]
[331604089,1720578713391,-2173.64,0.00013993,2]
[331604090,1720578713401,-500.0,0.00013993,2]
[331604091,1720578713411,-1556.62,0.00013993,2]
[331604092,1720578713420,-500.0,0.00013993,2]
[331604093,1720578713430,-1651.76,0.00013993,2]
[331604094,1720578713439,-500.0,0.00013993,2]
[331604095,1720578713449,-3794.84,0.00013993,2]
[331604096,1720578713458,-500.0,0.00013993,2]
[331604097,1720578713467,-3056.06,0.00013993,2]
[331604098,1720578713477,-3164.82,0.00013993,2]
[331604099,1720578713487,-1116.11,0.00013993,2]
[331604100,1720578713496,-701.8,0.00013993,2]
[331604101,1720578713505,-1628.14,0.00013993,2]
[331604102,1720578713515,-2832.39,0.00013993,2]
[331604103,1720578713524,-1057.08,0.00013993,2]
[331604104,1720578713534,-500.0,0.00013993,2]
[331604105,1720578713544,-5259.94,0.00013993,2]
[331604106,1720578713554,-1394.34,0.00013993,2]
[331604107,1720578713563,-500.0,0.00013993,2]
[331604108,1720578713572,-500.0,0.00013993,2]
[331604109,1720578713582,-3723.23,0.00013993,2]
[331604110,1720578713592,-1428.64,0.00013993,2]
[331604111,1720578713602,-500.0,0.00013993,2]
[331604112,1720578713611,-500.0,0.00013993,2]
[331604113,1720578713621,-500.0,0.00013993,2]
[331604114,1720578713630,-500.0,0.00013993,2]
[331604115,1720578713639,-1637.49,0.00013993,2]
[331604116,1720578713649,-500.0,0.00013993,2]
[331604117,1720578713658,-1289.83,0.00013993,2]
[331604118,1720578713667,-4028.33,0.00013993,2]
[331604119,1720578713677,-500.0,0.00013993,2]
[331604120,1720578713686,-2993.84,0.00013993,2]
[331604121,1720578713696,-500.0,0.00013993,2]
[331604122,1720578713705,-2832.69,0.00013993,2]
[331604123,1720578713715,-500.0,0.00013993,2]
[331604124,1720578713724,-1071.85,0.00013993,2]
[331604125,1720578713734,-500.0,0.00013993,2]
[331604126,1720578713743,-1916.52,0.00013993,2]
[331604127,1720578713753,-3236.91,0.00013993,2]
[331604128,1720578713763,-1308.49,0.00013993,2]
[331604129,1720578713772,-500.0,0.00013993,2]
[331604130,1720578713782,-2241.04,0.00013993,2]
[331604131,1720578713791,-500.0,0.00013993,2]
[331604132,1720578713801,-666.78,0.00013993,2]
[331604133,1720578713810,-500.0,0.00013993,2]
[331604134,1720578713820,-2619.25,0.00013993,2]
[331604135,1720578713829,-1165.49,0.00013993,2]
[331604136,1720578713838,-607.01,0.00013993,2]
[331604137,1720578713850,-796.74,0.00013993,2]
[331604138,1720578713860,-2550.62,0.00013993,2]
[331604139,1720578713870,-1719.47,0.00013993,2]
[331604140,1720578713879,-1535.65,0.00013993,2]
[331604141,1720578713889,-500.0,0.00013993,2]
[331604142,1720578713899,-500.0,0.00013993,2]
[331604143,1720578713909,-1593.91,0.00013993,2]
[331604144,1720578713918,-635.62,0.00013993,2]
[331604145,1720578713928,-500.0,0.00013993,2]
[331604146,1720578713937,-500.0,0.00013993,2]
[331604147,1720578713947,-500.0,0.00013993,2]
[331604148,1720578713957,-3309.42,0.00013993,2]
[331604149,1720578713967,-500.0,0.00013993,2]
[331604150,1720578713976,-851.82,0.00013993,2]
[331604151,1720578713986,-1134.24,0.00013993,2]
[331604152,1720578713996,-2211.54,0.00013993,2]
[331604153,1720578714005,-1623.1,0.00013993,2]
[331604154,1720578714016,-823.14,0.00013993,2]
[331604155,1720578714025,-2181.32,0.00013993,2]
[331604156,1720578714035,-3205.17,0.00013993,2]
[331604157,1720578714044,-1829.83,0.00013993,2]
[331604158,1720578714054,-500.0,0.00013993,2]
[331604159,1720578714064,-631.5868114,0.00013993,2]
[331604160,1720578714074,-751.82,0.00013993,2]
[331604161,1720578714084,-558.55,0.00013993,2]
[331604162,1720578714096,-1952.3,0.00013993,2]
[331604163,1720578714106,-2070.44,0.00013993,2]
[331604164,1720578714115,-500.0,0.00013993,2]
[331604165,1720578714124,-500.0,0.00013993,2]
[331604166,1720578714135,-3572.72,0.00013993,2]
[331604167,1720578714148,-500.0,0.00013993,2]
[331604168,1720578714158,-1170.3,0.00013993,2]
[331604169,1720578714168,-500.0,0.00013993,2]
[331604170,1720578714178,-952.39,0.00013993,2]
[331604171,1720578714188,-500.0,0.00013993,2]
[331604172,1720578714197,-4228.87,0.00013993,2]
[331604173,1720578714207,-500.0,0.00013993,2]
[331604174,1720578714216,-916.36,0.00013993,2]
[331604175,1720578714226,-639.17,0.00013993,2]
[331604176,1720578714236,-500.0,0.00013993,2]
[331604177,1720578714245,-2319.44,0.00013993,2]
[331604178,1720578714255,-500.0,0.00013993,2]
[331604179,1720578714264,-2105.71,0.00013993,2]
[331604180,1720578714274,-500.0,0.00013993,2]
[331604181,1720578714283,-747.15,0.00013993,2]
[331604182,1720578714293,-500.0,0.00013993,2]
[331604183,1720578714302,-1839.06,0.00013993,2]
[331604184,1720578714311,-5219.39,0.00013993,2]
[331604185,1720578714321,-931.18,0.00013993,2]
[331604186,1720578714331,-553.43,0.00013993,2]
[331604187,1720578714340,-623.84,0.00013993,2]
[331604188,1720578714352,-2886.6,0.00013993,2]
[331604189,1720578714361,-3728.58,0.00013993,2]
[331604190,1720578714371,-796.99,0.00013993,2]
[331604191,1720578714380,-500.0,0.00013993,2]
[331604192,1720578714390,-539.23,0.00013993,2]
[331604193,1720578714399,-4577.06,0.00013993,2]
[331604194,1720578714408,-5476.03,0.00013993,2]
[331604195,1720578714418,-1872.17,0.00013993,2]
[331604196,1720578714427,-500.0,0.00013993,2]
[331604197,1720578714436,-868.45,0.00013993,2]
[331604198,1720578714445,-1648.09,0.00013993,2]
[331604199,1720578714455,-1219.17,0.00013993,2]
[331604200,1720578714464,-500.0,0.00013993,2]
[331604201,1720578714473,-655.24,0.00013993,2]
[331604202,1720578714482,-500.0,0.00013993,2]
[331604203,1720578714491,-5498.87,0.00013993,2]
[331604204,1720578714500,-1260.98,0.00013993,2]
[331604205,1720578714510,-553.58181679,0.00013993,2]
[331604206,1720578714519,-578.76,0.00013993,2]
[331604207,1720578714528,-500.0,0.00013993,2]
[331604208,1720578714538,-500.0,0.00013993,2]
[331604209,1720578714547,-777.75,0.00013993,2]
[331604210,1720578714557,-472.53062018,0.00013993,2]
[331604211,1720578714567,-1323.41,0.00013993,2]
[331604212,1720578714578,-1207.34,0.00013993,2]
[331604213,1720578714588,-500.0,0.00013993,2]
[331604214,1720578714600,-1414.19,0.00013993,2]
[331604215,1720578714610,-599.32,0.00013993,2]
[331604216,1720578714621,-500.0,0.00013993,2]
[331604217,1720578714631,-2329.47,0.00013993,2]
[331604218,1720578714641,-500.0,0.00013993,2]
[331604219,1720578714652,-500.0,0.00013993,2]
[331604220,1720578714662,-3968.07,0.00013993,2]
[331604221,1720578714673,-677.11,0.00013993,2]
[331604222,1720578714683,-522.82,0.00013993,2]
[331604223,1720578714693,-500.0,0.00013993,2]
[331604224,1720578714702,-635.38,0.00013993,2]
[331604225,1720578714712,-413.07005915,0.00013993,2]
[331604226,1720578714721,-7415.51,0.00013993,2]
[331604227,1720578714731,-3610.31,0.00013993,2]
[331604228,1720578714742,-663.26,0.00013993,2]
[331604229,1720578714751,-2867.15,0.00013993,2]
[331604230,1720578714761,-16890.74,0.00013993,2]
[331604231,1720578714770,-500.0,0.00013993,2]
[331604232,1720578714779,-500.0,0.00013993,2]
[331604233,1720578714788,-1875.4,0.00013993,2]
[331604234,1720578714798,-500.0,0.00013993,2]
[331604235,1720578714807,-551.8,0.00013993,2]
[331604236,1720578714816,-4077.31,0.00013993,2]
[331604237,1720578714826,-3530.8,0.00013993,2]
[331604238,1720578714835,-3028.89,0.00013993,2]
[331604239,1720578714846,-1218.44,0.00013993,2]
[331604240,1720578714857,-575.42522681,0.00013993,2]
[331604241,1720578714866,-10810.32,0.00013993,2]
[331604242,1720578714876,-500.0,0.00013993,2]
[331604243,1720578714886,-500.0,0.00013993,2]
[331604244,1720578714895,-1431.77,0.00013993,2]
[331604245,1720578714905,-2505.49,0.00013993,2]
[331604246,1720578714914,-19271.94,0.00013993,2]
[331604247,1720578714924,-500.0,0.00013993,2]
[331604248,1720578714933,-1457.6,0.00013993,2]
[331604249,1720578714943,-500.0,0.00013993,2]
[331604250,1720578714953,-500.0,0.00013993,2]
[331604251,1720578714963,-500.0,0.00013993,2]
[331604252,1720578714973,-2780.88,0.00013993,2]
[331604253,1720578714982,-500.0,0.00013993,2]
[331604254,1720578714992,-2781.87,0.00013993,2]
[331604255,1720578715002,-500.0,0.00013993,2]
[331604256,1720578715011,-500.0,0.00013993,2]
[331604257,1720578715021,-6872.83,0.00013993,2]
[331604258,1720578715031,-500.0,0.00013993,2]
[331604259,1720578715040,-2366.06,0.00013993,2]
[331604260,1720578715050,-500.0,0.00013993,2]
[331604261,1720578715060,-990.71,0.00013993,2]
[331604262,1720578715070,-500.0,0.00013993,2]
[331604263,1720578715079,-4065.4,0.00013993,2]
[331604264,1720578715089,-500.0,0.00013993,2]
[331604265,1720578715099,-1390.44,0.00013993,2]
[331604266,1720578715108,-3490.15,0.00013993,2]
[331604267,1720578715280,-1107.57,0.00013993,2]
[331604268,1720578715290,-3006.98,0.00013993,2]
[331604269,1720578715300,-852.1,0.00013993,2]
[331604270,1720578715309,-500.0,0.00013993,2]
[331604271,1720578715318,-3483.06,0.00013993,2]
[331604272,1720578715328,-4468.39,0.00013993,2]
[331604273,1720578715338,-1855.26,0.00013993,2]
[331604274,1720578715348,-500.0,0.00013993,2]
[331604275,1720578715357,-602.02,0.00013993,2]
[331604276,1720578715366,-882.44,0.00013993,2]
[331604277,1720578715376,-583.01,0.00013993,2]
[331604278,1720578715386,-500.0,0.00013993,2]
[331604279,1720578715395,-8876.2,0.00013993,2]
[331604280,1720578715405,-500.0,0.00013993,2]
[331604281,1720578715414,-934.47,0.00013993,2]
[331604282,1720578715423,-2141.19,0.00013993,2]
[331604283,1720578715432,-500.0,0.00013993,2]
[331604284,1720578715441,-903.0,0.00013993,2]
[331604285,1720578715451,-5147.73,0.00013993,2]
[331604286,1720578715461,-954.89,0.00013993,2]
[331604287,1720578715470,-500.0,0.00013993,2]
[331604288,1720578715479,-500.0,0.00013993,2]
[331604289,1720578715488,-3131.64,0.00013993,2]
[331604290,1720578715497,-500.0,0.00013993,2]
[331604291,1720578715507,-500.0,0.00013993,2]
[331604292,1720578715515,-1557.06,0.00013993,2]
[331604293,1720578715524,-500.0,0.00013993,2]
[331604294,1720578715534,-3889.37,0.00013993,2]
[331604295,1720578715543,-500.0,0.00013993,2]
[331604296,1720578715552,-500.0,0.00013993,2]
[331604297,1720578715562,-577.12,0.00013993,2]
[331604298,1720578715571,-500.0,0.00013993,2]
[331604299,1720578715580,-1743.94,0.00013993,2]
[331604300,1720578715589,-500.0,0.00013993,2]
[331604301,1720578715600,-500.0,0.00013993,2]
[331604302,1720578715610,-614.68,0.00013993,2]
[331604303,1720578715619,-8950.3,0.00013993,2]
[331604304,1720578715628,-538.39,0.00013993,2]
[331604305,1720578715638,-1018.29,0.00013993,2]
[331604306,1720578715647,-500.0,0.00013993,2]
[331604307,1720578715657,-293.6668728,0.00013993,2]
[331604308,1720578715666,-1398.7,0.00013993,2]
[331604309,1720578715675,-500.0,0.00013993,2]
[331604310,1720578715685,-500.0,0.00013993,2]
[331604311,1720578715694,-2037.04,0.00013993,2]
[331604312,1720578715703,-1508.21,0.00013993,2]
[331604313,1720578715712,-2377.38,0.00013993,2]
[331604314,1720578715722,-2534.53,0.00013993,2]
[331604315,1720578715731,-501.97557877,0.00013993,2]
[331604316,1720578715740,-2872.14,0.00013993,2]
[331604317,1720578715750,-2027.01,0.00013993,2]
[331604318,1720578715760,-4263.38,0.00013993,2]
[331604319,1720578715769,-500.0,0.00013993,2]
[331604320,1720578715778,-1232.23,0.00013993,2]
[331604321,1720578715788,-796.28,0.00013993,2]
[331604322,1720578715797,-500.0,0.00013993,2]
[331604323,1720578715807,-3049.92,0.00013993,2]
[331604324,1720578715816,-2821.53,0.00013993,2]
[331604325,1720578715825,-3249.13,0.00013993,2]
[331604326,1720578715835,-4199.56,0.00013993,2]
[331604327,1720578715844,-2500.98,0.00013993,2]
[331604328,1720578715856,-500.0,0.00013993,2]
[331604329,1720578715866,-805.78,0.00013993,2]
[331604330,1720578715876,-500.0,0.00013993,2]
[331604331,1720578715886,-578.13,0.00013993,2]
[331604332,1720578715895,-500.0,0.00013993,2]
[331604333,1720578715904,-500.0,0.00013993,2]
[331604334,1720578715914,-2527.73,0.00013993,2]
[331604335,1720578715924,-3416.97,0.00013993,2]
[331604336,1720578715934,-976.94,0.00013993,2]
[331604337,1720578715944,-500.0,0.00013993,2]
[331604338,1720578715953,-2477.3,0.00013993,2]
[331604339,1720578715963,-912.7,0.00013993,2]
[331604340,1720578715972,-500.0,0.00013993,2]
[331604341,1720578715982,-2257.18,0.00013993,2]
[331604342,1720578715992,-628.03,0.00013993,2]
[331604343,1720578716002,-500.0,0.00013993,2]
[331604344,1720578716012,-706.93,0.00013993,2]
[331604345,1720578716022,-3448.23,0.00013993,2]
[331604346,1720578716031,-1232.81,0.00013993,2]
[331604347,1720578716040,-500.0,0.00013993,2]
[331604348,1720578716049,-2259.25,0.00013993,2]
[331604349,1720578716059,-2894.3,0.00013993,2]
[331604350,1720578716069,-500.0,0.00013993,2]
[331604351,1720578716079,-500.0,0.00013993,2]
[331604352,1720578716088,-500.0,0.00013993,2]
[331604353,1720578716098,-1929.12,0.00013993,2]
[331604354,1720578716108,-3384.27,0.00013993,2]
[331604355,1720578716118,-500.0,0.00013993,2]
[331604356,1720578716127,-500.0,0.00013993,2]
[331604357,1720578716137,-500.0,0.00013993,2]
[331604358,1720578716147,-500.0,0.00013993,2]
[331604359,1720578716157,-2196.93,0.00013993,2]
[331604360,1720578716166,-654.33,0.00013993,2]
[331604361,1720578716176,-500.0,0.00013993,2]
[331604362,1720578716185,-1229.65,0.00013993,2]
[331604363,1720578716194,-1728.08,0.00013993,2]
[331604364,1720578716204,-500.0,0.00013993,2]
[331604365,1720578716214,-500.0,0.00013993,2]
[331604366,1720578716223,-500.0,0.00013993,2]
[331604367,1720578716233,-1210.93,0.00013993,2]
[331604368,1720578716242,-500.0,0.00013993,2]
[331604369,1720578716251,-903.93,0.00013993,2]
[331604370,1720578716260,-1238.02,0.00013993,2]
[331604371,1720578716270,-1289.3,0.00013993,2]
[331604372,1720578716279,-500.0,0.00013993,2]
[331604373,1720578716288,-1330.94,0.00013993,2]
[331604374,1720578716298,-500.0,0.00013993,2]
[331604375,1720578716307,-500.0,0.00013993,2]
[331604376,1720578716316,-1469.74,0.00013993,2]
[331604377,1720578716325,-190.91932096,0.00013993,2]
[331604378,1720578716335,-962.6,0.00013993,2]
[331604379,1720578716344,-2167.98,0.00013993,2]
[331604380,1720578716355,-2623.08,0.00013993,2]
[331604381,1720578716365,-4719.0,0.00013993,2]
[331604382,1720578716375,-2704.83,0.00013993,2]
[331604383,1720578716384,-582.73,0.00013993,2]
[331604384,1720578716394,-500.0,0.00013993,2]
[331604385,1720578716404,-500.0,0.00013993,2]
[331604386,1720578716413,-500.0,0.00013993,2]
[331604387,1720578716422,-500.0,0.00013993,2]
[331604388,1720578716432,-500.0,0.00013993,2]
[331604389,1720578716442,-4118.25,0.00013993,2]
[331604390,1720578716450,-500.0,0.00013993,2]
[331604391,1720578716460,-1019.09,0.00013993,2]
[331604392,1720578716469,-500.0,0.00013993,2]
[331604393,1720578716478,-4998.81,0.00013993,2]
[331604394,1720578716488,-1239.67,0.00013993,2]
[331604395,1720578716497,-500.0,0.00013993,2]
[331604396,1720578716507,-500.0,0.00013993,2]
[331604397,1720578716516,-3378.14,0.00013993,2]
[331604398,1720578716525,-864.0,0.00013993,2]
[331604399,1720578716535,-2524.16,0.00013993,2]
[331604400,1720578716544,-500.0,0.00013993,2]
[331604401,1720578716553,-1140.18,0.00013993,2]
[331604402,1720578716563,-1566.26,0.00013993,2]
[331604403,1720578716572,-500.0,0.00013993,2]
[331604404,1720578716581,-2247.97,0.00013993,2]
[331604405,1720578716590,-1541.81,0.00013993,2]
[331604406,1720578716599,-1668.28,0.00013993,2]
[331604407,1720578716609,-532.92664314,0.00013993,2]
[331604408,1720578716619,-655.24,0.00013993,2]
[331604409,1720578716629,-627.63839419,0.00013993,2]
[331604410,1720578716638,-500.0,0.00013993,2]
[331604411,1720578716647,-500.0,0.00013993,2]
[331604412,1720578716656,-854.28,0.00013993,2]
[331604413,1720578716666,-3977.48,0.00013993,2]
[331604414,1720578716675,-673.97,0.00013993,2]
[331604415,1720578716684,-500.0,0.00013993,2]
[331604416,1720578716693,-2144.39,0.00013993,2]
[331604417,1720578716703,-500.0,0.00013993,2]
[331604418,1720578716712,-1226.77,0.00013993,2]
[331604419,1720578716722,-2920.14,0.00013993,2]
[331604420,1720578716731,-500.0,0.00013993,2]
[331604421,1720578716740,-4020.96,0.00013993,2]
[331604422,1720578716750,-500.0,0.00013993,2]
[331604423,1720578716759,-1056.97,0.00013993,2]
[331604424,1720578716769,-500.0,0.00013993,2]
[331604425,1720578716778,-764.37,0.00013993,2]
[331604426,1720578716787,-547.38,0.00013993,2]
[331604427,1720578716797,-857.73,0.00013993,2]
[331604428,1720578716806,-1638.84,0.00013993,2]
[331604429,1720578716815,-1467.22,0.00013993,2]
[331604430,1720578716825,-655.77,0.00013993,2]
[331604431,1720578716834,-1834.97,0.00013993,2]
[331604432,1720578716844,-500.0,0.00013993,2]
[331604433,1720578716857,-3134.08,0.00013993,2]
[331604434,1720578716872,-889.54,0.00013993,2]
[331604435,1720578716885,-593.79,0.00013993,2]
[331604436,1720578716894,-1457.4,0.00013993,2]
[331604437,1720578716904,-835.98,0.00013993,2]
[331604438,1720578716913,-500.0,0.00013993,2]
[331604439,1720578716923,-661.66,0.00013993,2]
[331604440,1720578716932,-500.0,0.00013993,2]
[331604441,1720578716942,-2100.02,0.00013993,2]
[331604442,1720578716951,-500.0,0.00013993,2]
[331604443,1720578716960,-720.29,0.00013993,2]
[331604444,1720578716970,-1346.39,0.00013993,2]
[331604445,1720578716979,-550.66,0.00013993,2]
[331604446,1720578716988,-1127.85,0.00013993,2]
[331604447,1720578716997,-3512.43,0.00013993,2]
[331604448,1720578717006,-500.0,0.00013993,2]
[331604449,1720578717015,-500.0,0.00013993,2]
[331604450,1720578717024,-1483.16,0.00013993,2]
[331604451,1720578717033,-500.0,0.00013993,2]
[331604452,1720578717043,-6244.58,0.00013993,2]
[331604453,1720578717052,-2849.79,0.00013993,2]
[331604454,1720578717061,-1706.17,0.00013993,2]
[331604455,1720578717071,-1239.0,0.00013993,2]
[331604456,1720578717081,-500.0,0.00013993,2]
[331604457,1720578717091,-500.0,0.00013993,2]
[331604458,1720578717100,-500.0,0.00013993,2]
[331604459,1720578717109,-500.0,0.00013993,2]
[331604460,1720578717119,-1467.17,0.00013993,2]
[331604461,1720578717128,-567.1,0.00013993,2]
[331604462,1720578717140,-500.0,0.00013993,2]
[331604463,1720578717149,-3650.73,0.00013993,2]
[331604464,1720578717159,-520.91,0.00013993,2]
[331604465,1720578717168,-1245.43,0.00013993,2]
[331604466,1720578717178,-500.0,0.00013993,2]
[331604467,1720578717187,-500.0,0.00013993,2]
[331604468,1720578717197,-500.0,0.00013993,2]
[331604469,1720578717207,-657.91,0.00013993,2]
[331604470,1720578717216,-500.0,0.00013993,2]
[331604471,1720578717226,-1230.11,0.00013993,2]
[331604472,1720578717236,-1858.66,0.00013993,2]
[331604473,1720578717246,-500.0,0.00013993,2]
[331604474,1720578717256,-3451.64,0.00013993,2]
[331604475,1720578717266,-1741.78,0.00013993,2]
[331604476,1720578717275,-714.23,0.00013993,2]
[331604477,1720578717284,-500.0,0.00013993,2]
[331604478,1720578717293,-927.35,0.00013993,2]
[331604479,1720578717303,-500.0,0.00013993,2]
[331604480,1720578717312,-500.0,0.00013993,2]
[331604481,1720578717321,-604.7256843,0.00013993,2]
[331604482,1720578717331,-5993.12,0.00013993,2]
[331604483,1720578717340,-500.0,0.00013993,2]
[331604484,1720578717350,-968.04,0.00013993,2]
[331604485,1720578717359,-917.99,0.00013993,2]
[331604486,1720578717369,-500.0,0.00013993,2]
[331604487,1720578717380,-922.38,0.00013993,2]
[331604488,1720578717390,-2313.53,0.00013993,2]
[331604489,1720578717399,-2591.74,0.00013993,2]
[331604490,1720578717409,-500.0,0.00013993,2]
[331604491,1720578717418,-503.82,0.00013993,2]
[331604492,1720578717428,-836.08,0.00013993,2]
[331604493,1720578717437,-500.0,0.00013993,2]
[331604494,1720578717446,-844.97,0.00013993,2]
[331604495,1720578717456,-3557.48,0.00013993,2]
[331604496,1720578717465,-500.0,0.00013993,2]
[331604497,1720578717475,-3786.27,0.00013993,2]
[331604498,1720578717484,-500.0,0.00013993,2]
[331604499,1720578717493,-500.0,0.00013993,2]
[331604500,1720578717503,-1970.43,0.00013993,2]
[331604501,1720578717513,-3525.51,0.00013993,2]
[331604502,1720578717522,-1296.43,0.00013993,2]
[331604503,1720578717532,-1109.56,0.00013993,2]
[331604504,1720578717541,-838.6,0.00013993,2]
[331604505,1720578717550,-2503.8,0.00013993,2]
[331604506,1720578717559,-3965.45,0.00013993,2]
[331604507,1720578717568,-500.0,0.00013993,2]
[331604508,1720578717578,-609.31,0.00013993,2]
[331604509,1720578717588,-4650.87,0.00013993,2]
[331604510,1720578717597,-500.0,0.00013993,2]
[331604511,1720578717609,-500.0,0.00013993,2]
[331604512,1720578717618,-861.16,0.00013993,2]
[331604513,1720578717628,-1205.83,0.00013993,2]
[331604514,1720578717638,-506.91,0.00013993,2]
[331604515,1720578717647,-632.68,0.00013993,2]
[331604516,1720578717657,-500.0,0.00013993,2]
[331604517,1720578717666,-772.45,0.00013993,2]
[331604518,1720578717675,-500.0,0.00013993,2]
[331604519,1720578717685,-500.0,0.00013993,2]
[331604520,1720578717695,-560.47459242,0.00013993,2]
[331604521,1720578717704,-500.0,0.00013993,2]
[331604522,1720578717713,-770.23,0.00013993,2]
[331604523,1720578717723,-3383.54,0.00013993,2]
[331604524,1720578717733,-1752.78,0.00013993,2]
[331604525,1720578717742,-1512.13,0.00013993,2]
[331604526,1720578717751,-2688.28,0.00013993,2]
[331604527,1720578717760,-500.0,0.00013993,2]
[331604528,1720578717770,-1577.95,0.00013993,2]
[331604529,1720578717779,-1346.76,0.00013993,2]